bitfinex/quotes_SOLUSD_20260113
["timestamp","ask_amount","ask_price","bid_price","bid_amount"]
[1768335191343,7.60616949,144.12,144.08,0.60994912]
[1768335191556,6.93836309,144.13,144.09,0.60994912]
[1768335191849,7.60587036,144.13,144.09,0.60994912]
[1768335193238,0.66750727,144.11,144.06,0.60994912]
[1768335193433,7.60692525,144.11,144.07,0.60994912]
[1768335193623,7.60692525,144.11,144.07,4.07795907]
[1768335193829,6.9388026,144.12,144.08,4.07795907]
[1768335194043,6.9388026,144.12,144.08,0.60994912]
[1768335194225,0.66750727,144.11,144.07,0.60994912]
[1768335195526,0.66750727,144.1,144.06,4.07795907]
[1768335196154,0.66750727,144.09,144.03,0.60994912]
[1768335196449,0.66750727,144.08,144.04,0.60994912]
[1768335196657,0.66750727,144.08,144.04,4.07795907]
[1768335197147,0.66750727,144.08,144.04,0.60994912]
[1768335197526,7.60831949,144.08,144.04,0.60994912]
[1768335197729,0.66667532,144.07,144.03,10.41098113]
[1768335197929,0.66667532,144.07,144.02,4.07795907]
[1768335198131,0.66667532,144.07,144.02,11.0214346]
[1768335199946,7.60792363,144.07,144.02,11.0214346]
[1768335200146,0.66667532,144.06,144.02,0.60994912]
[1768335200646,0.66667532,144.06,144.0,23.68208726]
[1768335200826,0.66667532,144.06,144.01,0.60994912]
[1768335201453,4.13468527,144.06,144.01,0.60994912]
[1768335202747,0.66667532,144.04,143.99,4.07795907]
[1768335203650,0.66667532,144.04,144.0,0.60994912]
[1768335203851,4.13468527,144.04,144.0,0.60994912]
[1768335204653,6.94327148,144.03,144.0,0.60994912]
[1768335205753,7.6099468,144.03,143.98,7.55506467]
[1768335206141,7.6099468,144.03,143.99,0.60994912]
[1768335207356,7.6099468,144.03,143.99,7.55481838]
[1768335207357,0.66667532,144.03,143.99,7.55481838]
[1768335207660,7.60937923,144.04,144.0,0.60994912]
[1768335208170,0.66667532,144.04,144.0,7.55422535]
[1768335208863,7.60923561,144.04,144.0,0.60994912]
[1768335209048,0.66667532,144.03,144.0,0.60994912]
[1768335209250,0.66667532,144.03,143.99,11.02266811]
[1768335209766,0.66667532,144.03,144.01,3.46800995]
[1768335210167,0.66667532,144.03,143.99,7.55465816]
[1768335210340,0.66667532,144.03,144.01,3.46800995]
[1768335211562,0.66667532,144.03,143.99,7.55465816]
[1768335211754,0.66667532,144.03,144.01,3.46800995]
[1768335212056,0.66667532,144.03,143.99,7.55465816]
[1768335212261,0.66667532,144.03,144.01,3.46800995]
[1768335214580,6.94271204,144.04,144.02,3.46800995]
[1768335214748,0.66667532,144.05,144.03,3.46800995]
[1768335215374,7.60875794,144.05,144.03,3.46800995]
[1768335216244,7.60875794,144.05,144.02,3.46800995]
[1768335217147,109.69151961,144.07,144.04,4.07795907]
[1768335217350,102.75,144.07,144.06,3.46800995]
[1768335217871,0.68282314,144.09,144.06,3.46800995]
[1768335218070,0.68282314,144.09,144.07,3.46800995]
[1768335218272,7.62303324,144.09,144.07,3.46800995]
[1768335219171,7.62303324,144.09,144.06,3.46800995]
[1768335219372,0.68282314,144.08,144.05,2.21856503]
[1768335219548,0.65282314,144.08,144.05,2.21856503]
[1768335220046,0.65282314,144.08,144.06,2.21856503]
[1768335220241,0.65282314,144.08,144.04,2.82851415]
[1768335221572,0.68282314,144.09,144.06,2.21856503]
[1768335221772,0.68282314,144.09,144.05,2.85851415]
[1768335222470,7.62311083,144.09,144.05,2.85851415]
[1768335223284,0.68282314,144.12,144.08,2.85851415]
[1768335223786,7.62015444,144.15,144.08,0.63994912]
[1768335224080,0.68282314,144.13,144.08,0.63994912]
[1768335224281,0.68282314,144.13,144.09,0.63994912]
[1768335224488,0.68282314,144.13,144.09,2.85851415]
[1768335225651,7.62114932,144.13,144.09,2.85851415]
[1768335226277,0.68282314,144.12,144.07,2.85851415]
[1768335226574,0.68282314,144.09,144.05,0.63994912]
[1768335226746,0.68282314,144.09,144.03,7.61276704]
[1768335226747,2.21856503,144.09,144.03,7.61276704]
[1768335226950,2.21856503,144.08,144.03,0.66994916]
[1768335227364,2.21856503,144.09,144.03,2.88851419]
[1768335227586,2.21856503,144.09,144.03,9.8315083]
[1768335227777,26.5075258,144.1,144.04,7.61241159]
[1768335227964,26.5075258,144.1,144.04,9.83097662]
[1768335228286,26.5075258,144.1,144.04,7.61241159]
[1768335228747,9.84168099,144.09,144.04,7.61241159]
[1768335228948,7.62311596,144.09,144.04,0.66994916]
[1768335229175,9.84168099,144.09,144.04,0.66994916]
[1768335230105,0.68282314,144.08,144.04,0.66994916]
[1768335230867,7.62358628,144.08,144.04,0.66994916]
[1768335231063,7.62358628,144.08,144.05,2.21856503]
[1768335231279,7.62353613,144.08,144.05,2.21856503]
[1768335234180,7.62353613,144.08,144.04,2.88851419]
[1768335236690,0.68282314,144.07,144.04,2.21856503]
[1768335236875,0.68282314,144.07,144.03,0.66994916]
[1768335237188,0.68282314,144.07,144.02,2.88851419]
[1768335237978,7.62437527,144.06,144.02,2.88851419]
[1768335238765,0.68282314,144.05,144.01,0.66994916]
[1768335240273,9.16011716,144.06,143.97,0.66994916]
[1768335240274,0.68282314,144.01,143.97,0.66994916]
[1768335240477,0.68282314,144.03,143.99,0.66994916]
[1768335242062,110.37502271,144.05,144.01,0.66994916]
[1768335242266,102.75,144.05,144.02,2.88851419]
[1768335242483,109.69205835,144.05,144.02,0.66994916]
[1768335243787,102.75,144.05,144.02,0.66994916]
[1768335245290,102.75,144.05,144.02,2.88851419]
[1768335245668,7.62451688,144.06,144.02,2.88851419]
[1768335245985,6.9412104,144.07,144.03,0.66994916]
[1768335246190,6.9412104,144.07,144.03,2.88851419]
[1768335246493,7.65672686,144.07,144.03,0.66994916]
[1768335247182,0.71551646,144.06,144.02,2.21856503]
[1768335248088,0.71551646,144.06,144.01,0.66994916]
[1768335248290,0.71551646,144.05,144.02,2.21856503]
[1768335248797,6.94190792,144.06,144.02,2.88851419]
[1768335248971,7.65742438,144.06,144.02,2.88851419]
[1768335249480,7.65742438,144.06,144.02,0.66994916]
[1768335250494,7.65742438,144.06,144.02,2.88851419]
[1768335251681,0.71551646,144.05,144.02,2.21856503]
[1768335251883,0.71551646,144.05,144.01,0.66994916]
[1768335252082,0.71551646,144.05,144.02,2.21856503]
[1768335252796,7.65658677,144.07,144.03,0.66994916]
[1768335253178,0.71551646,144.07,144.03,2.88851419]
[1768335253386,0.71551646,144.07,144.04,2.21856503]
[1768335255189,7.65664281,144.07,144.04,2.21856503]
[1768335255390,7.65664281,144.07,144.03,0.66994916]
[1768335255593,7.65664281,144.07,144.04,2.21856503]
[1768335258501,0.6594794,144.06,144.02,6.94344291]
[1768335258700,0.6594794,144.06,144.02,7.61339207]
[1768335258898,0.6594794,144.06,144.03,9.1613361]
[1768335259082,0.6594794,144.06,144.03,2.21856503]
[1768335259282,0.6594794,144.06,144.02,0.66994916]
[1768335259481,0.6594794,144.06,144.03,2.21856503]
[1768335260604,0.6594794,144.06,144.04,2.21856503]
[1768335261301,7.60040336,144.08,144.04,2.88851419]
[1768335261481,0.6594794,144.07,144.01,0.66994916]
[1768335261805,0.6594794,144.07,144.02,2.21856503]
[1768335262493,0.6594794,144.05,144.0,0.66994916]
[1768335262699,0.6594794,144.05,144.01,2.21856503]
[1768335264799,7.60199536,144.04,144.01,2.88851419]
[1768335264998,6.94251596,144.04,144.01,2.88851419]
[1768335265586,6.94251596,144.04,144.01,0.66994916]
[1768335265794,6.94251596,144.04,144.01,2.88851419]
[1768335267214,6.94251596,144.04,144.01,0.66994916]
[1768335268703,6.94251596,144.04,144.0,2.21856503]
[1768335268908,6.94251596,144.04,143.98,6.94522007]
[1768335268909,0.6594794,144.03,143.98,2.21856503]
[1768335269097,6.94444444,144.0,143.96,2.88851419]
[1768335270313,6.94444444,144.0,143.98,2.21856503]
[1768335271710,7.60356829,144.01,143.99,2.21856503]
[1768335273011,6.94368586,144.02,144.0,2.21856503]
[1768335273404,7.60316526,144.02,144.0,2.21856503]
[1768335273927,7.60316526,144.02,143.98,0.66994916]
[1768335274098,7.60316526,144.02,144.0,2.21856503]
[1768335274914,6.94368586,144.02,144.0,2.21856503]
[1768335276889,7.62629718,144.02,144.0,2.21856503]
[1768335277331,6.94368586,144.02,144.0,2.21856503]
[1768335278030,6.94368586,144.02,143.99,2.88851419]
[1768335278320,6.94368586,144.02,144.0,2.21856503]
[1768335279100,7.62629718,144.02,144.0,2.21856503]
[1768335279300,0.68261132,144.03,143.99,0.66994916]
[1768335279495,0.68261132,144.03,144.0,3.46948111]
[1768335279696,0.68261132,144.03,143.99,0.66994916]
[1768335279914,0.68261132,144.03,144.0,3.46948111]
[1768335281089,24.29936626,144.04,144.0,3.46948111]
[1768335281090,24.98197758,144.04,144.01,3.46948111]
[1768335281909,7.6258155,144.03,144.02,3.46948111]
[1768335282103,7.6258155,144.03,144.01,3.46948111]
[1768335282995,24.29936626,144.04,144.02,4.17941836]
[1768335283196,24.98197758,144.04,144.02,3.46948111]
[1768335284617,24.98197758,144.04,144.0,0.70993725]
[1768335285023,24.98197758,144.04,144.02,3.46948111]
[1768335285716,24.98197758,144.04,144.01,0.70993725]
[1768335285903,6.94251596,144.04,144.02,3.46948111]
[1768335286219,7.62512728,144.04,144.03,3.46948111]
[1768335286397,6.94251596,144.04,144.03,3.46948111]
[1768335287300,109.69218528,144.05,144.03,3.46948111]
[1768335287497,109.69218528,144.05,144.04,3.46948111]
[1768335288010,109.69218528,144.05,144.02,0.70993725]
[1768335288525,110.3747966,144.05,144.04,3.46948111]
[1768335288732,30.69467449,144.08,144.04,3.46948111]
[1768335288914,0.68261132,144.06,144.05,3.46948111]
[1768335289635,0.68261132,144.06,144.04,3.46948111]
[1768335289802,0.68261132,144.06,144.03,3.46948111]
[1768335290612,0.68261132,144.06,144.04,3.46948111]
[1768335290804,7.62464533,144.05,144.04,3.46948111]
[1768335291924,7.62464533,144.05,144.03,3.46948111]
[1768335294721,6.94203401,144.05,144.03,3.46948111]
[1768335294933,7.62426511,144.06,144.04,3.46948111]
[1768335295626,7.62426511,144.06,144.03,4.15449302]
[1768335295936,0.68261132,144.05,144.03,3.46948111]
[1768335296428,7.62512728,144.04,144.02,3.46948111]
[1768335296624,0.68261132,144.04,144.02,3.46948111]
[1768335297937,6.94225911,144.05,144.01,0.68501191]
[1768335297938,0.68261132,144.05,144.01,0.68501191]
[1768335298225,0.68261132,144.05,144.01,3.46948111]
[1768335298425,0.68261132,144.05,144.0,3.46948111]
[1768335298610,0.68261132,144.04,144.0,3.46948111]
[1768335299413,0.68261132,144.04,144.0,4.15449302]
[1768335300125,6.94299798,144.03,144.0,4.15449302]
[1768335300905,0.68261132,144.02,143.96,7.6310421]
[1768335301104,0.68261132,144.02,143.97,0.68501191]
[1768335301310,0.68261132,144.01,143.96,4.15449302]
[1768335301628,0.68261132,144.01,143.99,3.46948111]
[1768335302027,6.94444444,144.0,143.99,3.46948111]
[1768335302209,6.94444444,144.0,143.98,3.46948111]
[1768335303231,6.94444444,144.0,143.97,0.68501191]
[1768335303412,6.94444444,144.0,143.98,3.46948111]
[1768335303914,7.62705576,144.0,143.98,3.46948111]
[1768335305608,7.62857522,144.01,143.99,3.46948111]
[1768335306027,0.68443882,144.0,143.98,3.46948111]
[1768335306223,0.68443882,144.0,143.99,3.46948111]
[1768335306423,6.94251596,144.04,144.0,0.68501191]
[1768335306733,0.68443882,144.09,144.04,0.68501191]
[1768335306927,0.68443882,144.09,144.07,3.46948111]
[1768335307311,7.62490121,144.09,144.07,3.46948111]
[1768335307621,0.68443882,144.08,144.07,2.74448111]
[1768335307938,6.94046239,144.09,144.07,2.74448111]
[1768335308123,6.94046239,144.09,144.07,3.46948111]
[1768335308523,6.94046239,144.09,144.06,0.68726392]
[1768335308717,6.94046239,144.09,144.06,3.46948111]
[1768335309026,6.94046239,144.09,144.07,3.46948111]
[1768335309228,7.62490121,144.09,144.07,3.46948111]
[1768335309431,0.68443882,144.08,144.05,3.46948111]
[1768335309617,0.68443882,144.08,144.02,6.94306071]
[1768335309816,0.68443882,144.08,144.06,2.74448111]
[1768335310012,0.68443882,144.08,144.06,3.32666792]
[1768335310318,0.68443882,144.08,144.04,3.46948111]
[1768335310719,24.29072958,144.09,144.05,0.68726392]
[1768335311035,24.38972958,144.09,144.05,0.68726392]
[1768335311524,24.38972958,144.09,144.04,4.15674503]
[1768335312222,0.57958443,144.08,144.04,0.68726392]
[1768335313423,6.94107031,144.07,144.04,0.68726392]
[1768335314030,6.94107031,144.07,144.04,4.15674503]
[1768335314937,6.94107031,144.07,144.04,0.68726392]
[1768335315242,6.94107031,144.07,144.04,4.15674503]
[1768335316538,6.94107031,144.07,143.96,8.72677484]
[1768335316539,0.57482665,144.06,143.97,17.36415764]
[1768335316746,0.57482665,144.06,144.01,4.12532226]
[1768335317117,6.91203402,144.05,144.01,4.12532226]
[1768335318029,7.02055006,144.05,144.01,4.12532226]
[1768335318642,19.68055006,144.05,144.01,4.12532226]
[1768335319248,37.03563509,144.05,144.01,0.65584115]
[1768335319422,37.03563509,144.05,144.01,4.12532226]
[1768335319823,37.03563509,144.05,144.0,4.12532226]
[1768335319824,0.57016355,144.04,144.0,4.12532226]
[1768335320026,37.02611905,144.05,144.01,0.65584115]
[1768335321432,19.67103402,144.05,144.01,0.65584115]
[1768335321646,19.57203402,144.05,144.01,0.65584115]
[1768335322716,19.09053057,144.05,144.02,0.65584115]
[1768335323326,6.43053057,144.05,144.02,4.12532226]
[1768335323537,6.40053058,144.05,144.02,3.46948111]
[1768335323848,19.60175265,144.06,144.03,3.46948111]
[1768335324068,6.94175265,144.06,144.03,3.46948111]
[1768335325781,24.29380518,144.07,144.03,4.12532226]
[1768335325973,36.95380518,144.07,144.03,4.12532226]
[1768335327461,37.60789741,144.07,144.03,4.12532226]
[1768335327973,37.60789741,144.07,144.03,0.65584115]
[1768335329071,6.94107031,144.07,144.04,0.65584115]
[1768335329274,19.60107031,144.07,144.04,0.65584115]
[1768335330772,109.69032723,144.09,144.06,0.65584115]
[1768335330955,6.94032723,144.09,144.06,4.12532226]
[1768335331274,13.31409223,144.1,144.07,0.65584115]
[1768335331275,20.2538747,144.1,144.07,0.65584115]
[1768335332163,19.59978247,144.1,144.07,0.65584115]
[1768335332362,20.2538747,144.1,144.07,0.65584115]
[1768335332666,20.0078147,144.1,144.07,0.65584115]
[1768335332866,19.35372247,144.1,144.07,0.65584115]
[1768335333260,6.93978247,144.1,144.07,0.65584115]
[1768335333775,6.93933215,144.11,144.08,0.65584115]
[1768335335157,6.93933215,144.11,144.08,4.12532226]
[1768335335357,7.61865801,144.11,144.08,4.12532226]
[1768335335872,7.61865801,144.11,144.08,0.65584115]
[1768335336181,7.61865801,144.11,144.07,4.19207456]
[1768335336374,7.61865801,144.11,144.07,0.72259345]
[1768335336755,0.69333237,144.12,144.08,0.72259345]
[1768335336961,0.64047812,144.13,144.09,4.19207456]
[1768335337682,0.64047812,144.13,144.09,3.46948111]
[1768335338070,0.69280383,144.12,144.09,3.46948111]
[1768335339862,0.69280383,144.12,144.09,4.19207456]
[1768335341273,0.69280383,144.12,144.1,3.46948111]
[1768335341476,0.69280383,144.12,144.1,2.21725714]
[1768335341673,103.44333237,144.14,144.1,2.93985059]
[1768335341881,110.38110338,144.14,144.11,2.93985059]
[1768335342082,0.64047812,144.13,144.11,2.21725714]
[1768335342267,110.38110338,144.14,144.11,2.93985059]
[1768335342465,109.68777101,144.14,144.11,2.93985059]
[1768335342668,109.25833702,144.14,144.11,2.93985059]
[1768335342968,0.69280383,144.13,144.09,0.72259345]
[1768335343176,109.89881514,144.14,144.1,0.72259345]
[1768335343483,109.89881514,144.14,144.1,2.93985059]
[1768335344282,102.32056601,144.14,144.11,0.72259345]
[1768335344478,0.64151421,144.13,144.12,2.21725714]
[1768335344679,0.64151421,144.13,144.1,0.72259345]
[1768335344867,0.64151421,144.13,144.11,2.21725714]
[1768335345476,6.93821588,144.13,144.08,0.72259345]
[1768335345790,102.29056601,144.14,144.1,2.21725714]
[1768335345791,109.22844361,144.14,144.1,2.21725714]
[1768335346294,109.22844361,144.14,144.08,7.66313474]
[1768335346295,109.22844361,144.14,144.08,0.72259345]
[1768335346590,109.22844361,144.14,144.1,2.21725714]
[1768335348264,0.1,144.17,144.13,2.21725714]
[1768335348464,0.1,144.17,144.14,2.21725714]
[1768335348782,0.1,144.17,144.13,2.21725714]
[1768335349177,0.1,144.17,144.12,0.72259345]
[1768335349379,0.1,144.17,144.13,2.21725714]
[1768335349687,7.03636363,144.17,144.13,2.21725714]
[1768335350508,2.21725714,144.16,144.09,0.72259345]
[1768335350693,2.21725714,144.16,144.08,12.66]
[1768335350694,2.21725714,144.14,144.08,0.72259345]
[1768335351265,2.21725714,144.14,144.08,2.93985059]
[1768335352081,2.21725714,144.14,144.08,0.72259345]
[1768335352394,24.28363282,144.13,144.08,0.72259345]
[1768335352686,2.21725714,144.1,144.05,0.72259345]
[1768335353588,2.21725714,144.09,144.04,0.72259345]
[1768335353995,2.21725714,144.08,144.03,0.72259345]
[1768335354376,9.15811809,144.08,144.03,0.72259345]
[1768335354705,9.15811809,144.08,144.02,0.72259345]
[1768335354876,2.21725714,144.07,144.02,0.72259345]
[1768335355075,2.21725714,144.06,144.02,0.72259345]
[1768335355502,2.21725714,144.06,144.01,0.72259345]
[1768335356089,9.1588849,144.06,144.01,0.72259345]
[1768335357900,2.21725714,144.05,144.01,0.72259345]
[1768335358296,21.81956392,144.05,144.01,0.72259345]
[1768335360197,19.60230678,144.05,144.01,0.72259345]
[1768335360496,21.81956392,144.05,144.01,0.72259345]
[1768335362603,2.21725714,144.04,144.01,0.72259345]
[1768335362800,2.21725714,144.02,143.96,0.72259345]
[1768335363099,2.21725714,144.01,143.96,0.72259345]
[1768335363305,14.87725714,144.02,143.96,6.94629416]
[1768335363480,14.87725714,144.02,143.97,0.72259345]
[1768335364302,12.66,144.02,143.97,0.72259345]
[1768335364687,19.60356991,144.02,143.97,0.72259345]
[1768335364888,21.82082705,144.02,143.97,0.72259345]
[1768335365100,34.70321494,144.08,143.99,0.68843388]
[1768335365101,12.66,144.03,143.99,0.68843388]
[1768335368105,19.60309829,144.03,143.98,2.21725714]
[1768335368314,19.60309829,144.03,143.99,2.21725714]
[1768335368315,12.66,144.03,143.99,2.21725714]
[1768335368804,19.60315304,144.03,143.98,2.21725714]
[1768335369014,21.82041018,144.03,143.96,9.16334332]
[1768335369210,21.93574064,144.03,143.96,9.16334332]
[1768335369885,21.93574064,144.03,143.97,2.21725714]
[1768335370084,12.66,144.03,143.98,0.68843388]
[1768335370797,6.94220493,144.05,144.0,0.68843388]
[1768335371112,6.94220493,144.05,144.01,0.68843388]
[1768335371689,2.8891956,144.04,143.99,0.68843388]
[1768335372010,0.11533046,144.03,143.99,0.68843388]
[1768335372199,12.77533046,144.03,143.99,0.68843388]
[1768335372401,12.77533046,144.03,143.98,0.68843388]
[1768335372402,2.21725714,144.02,143.98,0.68843388]
[1768335372704,2.21725714,144.02,143.96,2.21725714]
[1768335372705,0.12084088,144.01,143.97,0.68843388]
[1768335372908,2.33809802,144.01,143.97,0.68843388]
[1768335373212,2.21725714,143.98,143.94,0.68843388]
[1768335373585,6.6801107,144.01,143.94,0.68843388]
[1768335373586,9.57498539,144.01,143.95,0.68843388]
[1768335373792,21.82214392,144.0,143.95,0.68843388]
[1768335374216,39.18325503,144.0,143.95,0.68843388]
[1768335374509,36.96599789,144.0,143.95,0.68843388]
[1768335374712,39.18325503,144.0,143.95,0.68843388]
[1768335375214,0.67193846,143.99,143.95,0.68843388]
[1768335375804,7.61711663,143.99,143.95,0.68843388]
[1768335378115,9.83437377,143.99,143.95,0.68843388]
[1768335378303,2.3325876,143.98,143.94,0.70903268]
[1768335378693,2.21725714,143.98,143.94,0.70903268]
[1768335378902,0.10483539,143.97,143.93,0.2]
[1768335379106,0.10483539,143.97,143.93,0.90903268]
[1768335379316,0.10483539,143.97,143.93,0.2]
[1768335379317,14.98209253,143.97,143.93,0.2]
[1768335380016,0.11055466,143.95,143.93,0.2]
[1768335380317,6.94637399,143.96,143.92,0.90903268]
[1768335380510,9.16363113,143.96,143.92,0.90903268]
[1768335381495,26.62856611,143.96,143.92,0.2]
[1768335381823,26.62856611,143.96,143.92,0.90903268]
[1768335382193,0.68253954,143.95,143.92,0.09410566]
[1768335382410,6.94637399,143.96,143.92,0.80313834]
[1768335382615,7.04537399,143.96,143.92,0.80313834]
[1768335385420,9.26263113,143.96,143.92,0.80313834]
[1768335385715,2.21725714,143.95,143.92,0.80313834]
[1768335385916,2.79022211,143.93,143.89,0.90903268]
[1768335386135,2.79022211,143.93,143.89,0.2]
[1768335386136,2.21725714,143.92,143.89,0.2]
[1768335386414,9.73436468,143.91,143.88,0.1]
[1768335386799,12.66,143.9,143.87,0.1]
[1768335387002,14.87725714,143.9,143.87,0.1]
[1768335387749,14.99033437,143.9,143.87,0.1]
[1768335387902,0.56376768,143.89,143.87,0.1]
[1768335388222,12.759,143.9,143.87,0.1]
[1768335388394,19.70851987,143.9,143.87,0.1]
[1768335388799,6.94866371,143.92,143.87,0.80903268]
[1768335389011,12.66,143.91,143.87,0.80903268]
[1768335389224,12.66,143.91,143.88,0.70903268]
[1768335389614,0.57296497,143.9,143.87,7.05063019]
[1768335389801,12.66,143.91,143.88,0.70903268]
[1768335390720,12.66,143.91,143.88,7.65917788]
[1768335391301,12.66,143.91,143.89,0.70903268]
[1768335391838,12.66,143.91,143.88,6.9501452]
[1768335392130,12.66,143.91,143.89,0.70903268]
[1768335392434,11.935,143.91,143.9,0.70903268]
[1768335392612,9.85359235,143.94,143.9,0.70903268]
[1768335392813,0.68878895,143.94,143.9,7.65818182]
[1768335393143,0.68878895,143.94,143.9,9.87543896]
[1768335393303,0.68878895,143.94,143.89,2.21725714]
[1768335393304,6.9476035,143.94,143.89,2.21725714]
[1768335393502,0.68878895,143.93,143.88,7.65906014]
[1768335393702,0.68878895,143.93,143.88,9.87631728]
[1768335393929,0.68878895,143.93,143.88,7.65906014]
[1768335394134,0.68878895,143.92,143.88,6.95002746]
[1768335394310,13.36878895,143.93,143.89,0.70903268]
[1768335394831,13.36878895,143.93,143.89,7.6585616]
[1768335396044,13.36878895,143.93,143.89,0.70903268]
[1768335396229,20.31661694,143.93,143.89,0.70903268]
[1768335398025,22.53387408,143.93,143.89,0.70903268]
[1768335398413,12.68,143.93,143.9,0.67396683]
[1768335398619,13.3328254,143.93,143.88,7.62411578]
[1768335398843,13.3328254,143.93,143.89,0.67396683]
[1768335399231,20.28085833,143.93,143.89,0.67396683]
[1768335400653,12.68,143.93,143.9,0.67396683]
[1768335400829,12.68,143.94,143.91,0.67396683]
[1768335403155,14.89725714,143.94,143.91,0.67396683]
[1768335403449,13.3328254,143.94,143.9,7.62320581]
[1768335403626,0.6528254,143.97,143.92,0.67396683]
[1768335403825,0.6528254,143.97,143.93,0.67396683]
[1768335404257,0.6528254,143.96,143.92,0.67396683]
[1768335404841,0.6528254,143.96,143.92,7.62226504]
[1768335405040,10.42093447,143.97,143.93,0.67396683]
[1768335405247,11.07375987,143.97,143.93,0.67396683]
[1768335405452,4.1275855,143.95,143.91,0.67396683]
[1768335405839,0.6528254,143.94,143.89,10.42435554]
[1768335406039,0.6528254,143.92,143.88,0.67396683]
[1768335406654,4.1275855,143.92,143.88,0.67396683]
[1768335406837,19.62803652,143.93,143.87,0.1]
[1768335406838,4.1275855,143.9,143.87,0.1]
[1768335407036,4.1275855,143.88,143.87,0.1]
[1768335407459,0.6528254,143.88,143.86,0.2]
[1768335407632,4.1275855,143.89,143.85,0.87396683]
[1768335408445,0.6528254,143.89,143.85,7.82558017]
[1768335408754,4.1275855,143.89,143.85,7.82558017]
[1768335408935,4.1275855,143.89,143.85,0.87396683]
[1768335409140,11.07753278,143.89,143.85,0.87396683]
[1768335409345,3.4747601,143.88,143.85,0.87396683]
[1768335410560,7.60277268,143.89,143.85,0.87396683]
[1768335410749,3.4747601,143.88,143.85,0.87396683]
[1768335413259,0.6528254,143.89,143.85,0.87396683]
[1768335413260,116.88,143.9,143.86,0.67396683]
[1768335413961,127.95686842,143.9,143.86,0.67396683]
[1768335414164,3.4747601,143.89,143.86,0.67396683]
[1768335414462,4.1275855,143.87,143.85,0.2]
[1768335414643,3.4747601,143.87,143.84,0.67396683]
[1768335415656,4.1275855,143.87,143.83,0.2]
[1768335415858,4.1275855,143.87,143.83,0.87396683]
[1768335416261,3.4747601,143.87,143.84,0.67396683]
[1768335417158,4.1275855,143.87,143.83,7.8266016]
[1768335417337,4.1275855,143.87,143.83,0.87396683]
[1768335417861,4.1275855,143.87,143.83,7.82649005]
[1768335418562,3.4747601,143.87,143.84,0.67396683]
[1768335419144,11.0778799,143.88,143.84,0.67396683]
[1768335420545,6.94996149,143.89,143.85,0.67396683]
[1768335420746,0.6528254,143.91,143.86,0.67396683]
[1768335421043,4.1275855,143.9,143.86,0.67396683]
[1768335421550,0.6528254,143.9,143.86,7.62506204]
[1768335421857,12.68,143.91,143.87,0.67396683]
[1768335422066,6.94798039,143.93,143.88,0.67396683]
[1768335422268,10.42274049,143.93,143.88,0.67396683]
[1768335423362,11.07556589,143.93,143.88,0.67396683]
[1768335423561,4.1275855,143.91,143.87,0.67396683]
[1768335423774,0.6528254,143.91,143.87,0.67396683]
[1768335424274,4.1275855,143.91,143.87,0.67396683]
[1768335425554,13.3328254,143.91,143.87,0.67396683]
[1768335425761,12.68,143.91,143.88,0.66348013]
[1768335426274,20.28623456,143.93,143.89,0.66348013]
[1768335427267,12.68,143.93,143.91,0.66348013]
[1768335427450,19.62792408,143.93,143.88,3.4747601]
[1768335427649,20.28616203,143.93,143.88,3.4747601]
[1768335427871,13.33823795,143.93,143.88,3.4747601]
[1768335428064,13.33823795,143.93,143.89,3.4747601]
[1768335428252,12.68,143.93,143.89,3.4747601]
[1768335428448,19.62786345,143.93,143.89,3.4747601]
[1768335428647,19.62786345,143.93,143.88,3.4747601]
[1768335429252,12.68,143.93,143.88,3.4747601]
[1768335429474,12.68,143.93,143.89,0.66348013]
[1768335429676,19.62784552,143.93,143.89,0.66348013]
[1768335429851,20.28608347,143.93,143.89,0.66348013]
[1768335430278,13.33823795,143.93,143.89,0.66348013]
[1768335430553,0.65823795,143.92,143.89,0.66348013]
[1768335430882,20.28609542,143.93,143.89,0.66348013]
[1768335431567,23.76085552,143.93,143.89,0.66348013]
[1768335431773,0.65823795,143.92,143.89,0.66348013]
[1768335432673,0.65823795,143.9,143.86,0.66348013]
[1768335433376,0.65823795,143.9,143.86,7.61463687]
[1768335433682,0.65823795,143.9,143.87,0.66348013]
[1768335434058,7.60758067,143.9,143.87,0.66348013]
[1768335434374,11.08234077,143.9,143.85,0.66348013]
[1768335434578,0.65823795,143.88,143.85,0.66348013]
[1768335436176,7.60866364,143.88,143.84,0.66348013]
[1768335436381,0.65823795,143.87,143.84,0.66348013]
[1768335437660,7.60911381,143.87,143.83,0.87681203]
[1768335438371,6.95087586,143.87,143.84,0.67681203]
[1768335438772,0.66713825,143.86,143.83,0.2]
[1768335438981,4.14189835,143.86,143.83,0.2]
[1768335439482,0.66713825,143.86,143.83,0.2]
[1768335439679,4.14189835,143.86,143.83,0.2]
[1768335439975,0.66713825,143.85,143.83,0.2]
[1768335440183,0.66713825,143.85,143.81,0.67681203]
[1768335440988,7.61890223,143.85,143.81,0.67681203]
[1768335441781,7.61890223,143.85,143.79,0.67681203]
[1768335441782,0.66713825,143.84,143.79,0.67681203]
[1768335441981,0.66713825,143.83,143.79,0.67681203]
[1768335442287,0.66713825,143.83,143.78,11.1063384]